bitfinex-derivatives/quotes_SOLF0:USTF0_20260226
["timestamp","ask_amount","ask_price","bid_price","bid_amount"]
[1772105141515,3.76755081,86.773,86.739,3.86324396]
[1772105142822,10.3711,86.777,86.741,14.28924124]
[1772105148627,10.3711,86.777,86.743,10.3751]
[1772105148927,3.0600707,86.79,86.743,10.3751]
[1772105148928,3.71642637,86.783,86.744,3.91394124]
[1772105149923,14.09120792,86.782,86.744,3.91394124]
[1772105150424,3.72060792,86.781,86.744,3.91394124]
[1772105150926,10.3708,86.78,86.746,10.3747]
[1772105156720,10.3708,86.78,86.746,13.94044417]
[1772105159429,3.73769217,86.791,86.759,10.3732]
[1772105160622,3.73769217,86.802,86.762,3.56574417]
[1772105160821,3.73769217,86.813,86.762,3.56574417]
[1772105162032,14.10449217,86.813,86.775,13.93704417]
[1772105162224,10.3668,86.813,86.776,3.56574417]
[1772105169141,10.3659,86.82,86.778,3.56574417]
[1772105169337,3.7065439,86.823,86.778,3.56574417]
[1772105169543,10.3652,86.827,86.789,3.56574417]
[1772105169735,3.7065439,86.834,86.789,3.56574417]
[1772105170436,3.0600707,86.84,86.789,3.56574417]
[1772105170638,3.7065439,86.845,86.796,3.56574417]
[1772105172143,3.7065439,86.845,86.79,3.0600707]
[1772105172144,10.3631,86.844,86.798,3.56574417]
[1772105172738,14.0189663,86.844,86.798,3.56574417]
[1772105172944,14.0189663,86.844,86.801,3.56574417]
[1772105173336,3.0600707,86.85,86.801,3.56574417]
[1772105173636,3.62583158,86.855,86.81,3.56574417]
[1772105173843,3.0600707,86.86,86.81,3.56574417]
[1772105174636,10.3621,86.853,86.814,3.56574417]
[1772105175843,13.97982851,86.87,86.814,3.56574417]
[1772105176144,3.0600707,86.88,86.831,3.56574417]
[1772105176541,3.61982851,86.879,86.831,3.56574417]
[1772105177040,3.61982851,86.879,86.837,10.3638]
[1772105177238,3.61982851,86.879,86.837,13.92954417]
[1772105178454,3.59307935,86.877,86.837,3.56574417]
[1772105180448,10.3593,86.876,86.837,3.56574417]
[1772105180649,3.67285331,86.869,86.821,3.56574417]
[1772105180848,3.67285331,86.849,86.81,3.56574417]
[1772105181046,3.0600707,86.84,86.798,3.56574417]
[1772105181951,3.0600707,86.84,86.8,13.93394417]
[1772105182550,3.73064183,86.859,86.801,3.56574417]
[1772105183551,3.73064183,86.859,86.811,3.56574417]
[1772105183943,3.73064183,86.859,86.815,3.56574417]
[1772105184349,3.0600707,86.84,86.802,3.56574417]
[1772105184543,3.60020989,86.839,86.781,3.56574417]
[1772105185953,3.60020989,86.839,86.799,10.3684]
[1772105187254,10.3627,86.848,86.806,3.62090097]
[1772105187453,3.05507016,86.85,86.806,3.62090097]
[1772105188453,3.54930937,86.85,86.806,3.62090097]
[1772105188752,3.54930937,86.863,86.811,3.62090097]
[1772105189253,3.54930937,86.863,86.82,3.05507016]
[1772105190057,3.54930937,86.863,86.821,10.3657]
[1772105190453,10.3597,86.872,86.831,3.62090097]
[1772105190661,3.54930937,86.876,86.831,3.62090097]
[1772105190860,3.54930937,86.876,86.84,3.05507016]
[1772105191952,3.54930937,86.876,86.831,3.62090097]
[1772105192953,10.3594,86.875,86.833,13.98510097]
[1772105194059,10.3594,86.875,86.834,3.62090097]
[1772105195957,13.90870937,86.875,86.834,3.62090097]
[1772105197162,3.61431599,86.874,86.834,3.62090097]
[1772105198565,3.61431599,86.874,86.836,10.3639]
[1772105200359,3.61431599,86.874,86.836,14.11177449]
[1772105201061,3.6198723,86.859,86.811,3.74787449]
[1772105201657,3.6198723,86.859,86.82,10.3659]
[1772105202866,3.6198723,86.859,86.829,10.3648]
[1772105203061,3.6198723,86.859,86.822,3.74787449]
[1772105204071,3.6198723,86.859,86.822,14.11347449]
[1772105204867,13.9811723,86.859,86.822,14.11347449]
[1772105207969,3.5300534,86.849,86.805,3.74787449]
[1772105208976,13.8925534,86.849,86.808,10.3673]
[1772105213275,3.5300534,86.849,86.814,10.3666]
[1772105215678,3.5300534,86.849,86.817,14.11407449]
[1772105215878,3.5300534,86.849,86.817,3.74787449]
[1772105216979,3.30845627,86.859,86.824,10.3654]
[1772105218677,10.3615,86.857,86.817,14.11407449]
[1772105218879,3.38375159,86.856,86.817,14.11407449]
[1772105219974,10.362,86.853,86.817,14.11407449]
[1772105220171,3.38834804,86.852,86.817,14.11407449]
[1772105220576,3.38834804,86.841,86.803,10.3679]
[1772105220776,3.38834804,86.856,86.81,3.05507016]
[1772105220978,3.38834804,86.856,86.811,3.69164322]
[1772105221176,10.3618,86.855,86.819,10.3659]
[1772105221679,3.39162021,86.854,86.819,10.3659]
[1772105222481,10.362,86.853,86.819,10.3659]
[1772105223287,10.3612,86.86,86.823,3.69164322]
[1772105223788,3.38912581,86.879,86.831,3.69164322]
[1772105224587,3.38912581,86.879,86.843,3.69164322]
[1772105224984,10.3587,86.881,86.843,3.69164322]
[1772105225182,10.3587,86.881,86.845,3.69164322]
[1772105225782,20.7108,86.909,86.787,30.48810737]
[1772105225783,3.38942437,86.912,86.86,3.05507016]
[1772105226089,3.38942437,86.912,86.871,3.69164322]
[1772105226283,3.38942437,86.912,86.871,14.05144322]
[1772105227387,3.38942437,86.912,86.871,3.69164322]
[1772105227988,10.3552,86.91,86.871,3.69164322]
[1772105231996,3.34777276,86.909,86.871,3.69164322]
[1772105234591,10.3543,86.918,86.871,3.69164322]
[1772105234794,3.3566775,86.909,86.859,3.69164322]
[1772105235096,3.3566775,86.899,86.859,3.69164322]
[1772105237796,3.3566775,86.899,86.86,10.3611]
[1772105238099,3.3566775,86.899,86.86,14.05274322]
[1772105238500,3.3566775,86.899,86.861,3.69164322]
[1772105238703,3.05507016,86.9,86.865,3.69164322]
[1772105239503,10.3554,86.909,86.867,3.69164322]
[1772105240105,13.69207534,86.909,86.867,3.69164322]
[1772105240498,3.33667534,86.908,86.867,3.69164322]
[1772105241104,10.3556,86.907,86.867,3.69164322]
[1772105242811,3.36720753,86.906,86.867,3.69164322]
[1772105242999,3.36720753,86.889,86.841,3.69164322]
[1772105243204,6.43722368,86.88,86.841,3.69164322]
[1772105243403,3.38215352,86.879,86.841,3.69164322]
[1772105244605,3.38215352,86.879,86.841,14.05494322]
[1772105248003,10.3581,86.886,86.847,3.6153462]
[1772105248204,3.41363382,86.893,86.847,3.6153462]
[1772105249216,10.3574,86.892,86.85,3.6153462]
[1772105250012,10.3574,86.892,86.852,3.6153462]
[1772105250708,3.39213156,86.891,86.852,3.6153462]
[1772105250914,3.39213156,86.872,86.832,3.6153462]
[1772105251910,3.39213156,86.872,86.834,13.9795462]
[1772105254415,10.3599,86.871,86.834,3.6153462]
[1772105255210,3.39213156,86.872,86.834,3.6153462]
[1772105256008,10.3591,86.878,86.836,3.6153462]
[1772105257014,10.3591,86.878,86.84,10.3635]
[1772105258010,13.85596032,86.878,86.836,3.6153462]
[1772105258216,10.3596,86.873,86.836,3.6153462]
[1772105258813,3.49686032,86.877,86.838,3.60088105]
[1772105259516,13.57017239,86.876,86.838,3.60088105]
[1772105260209,3.21087239,86.872,86.838,3.60088105]
[1772105260409,3.21087239,86.869,86.833,10.3642]
[1772105263316,3.21087239,86.869,86.834,3.60088105]
[1772105263526,10.359,86.878,86.836,3.60088105]
[1772105263821,10.359,86.878,86.819,30.58369306]
[1772105263822,3.18189216,86.883,86.841,3.60088105]
[1772105264526,10.3586,86.882,86.844,3.60088105]
[1772105267026,10.3586,86.882,86.845,10.3629]
[1772105267223,10.3586,86.882,86.845,13.96378105]
[1772105268122,10.3586,86.882,86.846,3.60088105]
[1772105269121,10.57158782,86.928,86.84,3.05216325]
[1772105269122,10.3578,86.889,86.849,3.60088105]
[1772105270026,10.3584,86.884,86.849,3.60088105]
[1772105272323,3.05255128,86.881,86.843,10.3631]
[1772105272927,3.05255128,86.881,86.837,3.60088105]
[1772105273128,6.10471453,86.87,86.821,3.60088105]
[1772105273525,3.054583,86.869,86.821,3.60088105]
[1772105273925,10.3602,86.868,86.829,10.3648]
[1772105274227,13.414783,86.868,86.829,10.3648]
[1772105275227,13.414783,86.868,86.835,10.3641]
[1772105275531,10.3594,86.875,86.836,3.60088105]
[1772105275931,10.3594,86.875,86.819,30.58369306]
[1772105275932,3.10275148,86.88,86.84,3.05216325]
[1772105276134,3.09746303,86.899,86.841,3.70163929]
[1772105276932,10.3577,86.889,86.846,14.06433929]
[1772105277132,10.3577,86.889,86.847,3.70163929]
[1772105277629,10.3591,86.877,86.847,3.70163929]
[1772105277823,3.06657442,86.876,86.821,3.70163929]
[1772105279029,3.06657442,86.872,86.831,10.3645]
[1772105280031,3.18715392,86.869,86.831,10.3645]
[1772105280424,3.05216325,86.88,86.834,3.70163929]
[1772105280627,10.3587,86.881,86.834,3.70163929]
[1772105281828,13.53793553,86.881,86.834,3.70163929]
[1772105282032,13.53793553,86.881,86.838,3.70163929]
[1772105282236,3.17923553,86.88,86.838,3.70163929]
[1772105282436,3.17923553,86.877,86.826,3.70163929]
[1772105283836,3.1734243,86.859,86.813,3.70163929]
[1772105285041,3.1734243,86.856,86.813,3.70163929]
[1772105286040,3.35084417,86.854,86.813,3.70163929]
[1772105286239,3.35084417,86.849,86.806,10.3675]
[1772105286438,3.35084417,86.849,86.8,3.70163929]
[1772105286439,3.05216325,86.84,86.8,3.70163929]
[1772105287336,3.35084417,86.859,86.802,3.70163929]
[1772105289040,10.3619,86.854,86.808,3.70163929]
[1772105290044,10.3619,86.854,86.81,3.70163929]
[1772105290940,10.361,86.861,86.813,3.70163929]
[1772105291736,10.3613,86.859,86.813,3.70163929]
[1772105291940,3.27838768,86.859,86.813,3.70163929]
[1772105292939,10.3621,86.852,86.813,3.70163929]
[1772105295843,3.28293336,86.858,86.815,3.70163929]
[1772105296242,3.28293336,86.858,86.81,3.05216325]
[1772105296243,10.3617,86.855,86.817,3.70163929]
[1772105296443,3.28293336,86.858,86.803,3.70163929]
[1772105296746,3.26664151,86.849,86.803,3.70163929]
[1772105297851,3.26664151,86.849,86.812,10.3668]
[1772105298753,10.3626,86.848,86.806,3.70163929]
[1772105299958,10.3626,86.848,86.808,3.70163929]
[1772105300454,3.36701993,86.855,86.811,3.70163929]
[1772105300962,10.362,86.853,86.811,3.70163929]
[1772105301849,10.362,86.853,86.812,14.06843929]
[1772105302060,10.362,86.853,86.813,3.70163929]
[1772105303551,13.74432314,86.853,86.813,3.70163929]
[1772105305655,3.38372126,86.852,86.813,3.70163929]
[1772105307958,3.05407651,86.86,86.813,3.70163929]
[1772105307959,3.38329004,86.848,86.813,3.70163929]
[1772105308159,3.36795056,86.839,86.791,3.62261988]
[1772105308565,3.36795056,86.859,86.811,3.62261988]
[1772105309965,3.36795056,86.857,86.819,10.366]
[1772105310669,10.3616,86.856,86.812,10.3668]
[1772105310871,3.39793681,86.855,86.813,3.62261988]
[1772105312066,10.3621,86.853,86.813,3.62261988]
[1772105313967,10.3621,86.853,86.815,3.62261988]
[1772105315169,13.81038452,86.853,86.815,3.62261988]
[1772105318266,3.44298776,86.852,86.815,3.62261988]
[1772105318472,3.44298776,86.869,86.821,3.72898323]
[1772105318970,3.44298776,86.869,86.829,3.72898323]
[1772105318971,10.3603,86.867,86.829,3.72898323]
[1772105319270,3.44298776,86.869,86.833,3.72898323]
[1772105320874,3.44298776,86.869,86.834,14.09318323]
[1772105321576,20.7113,86.907,86.834,14.09318323]
[1772105321577,13.63350724,86.868,86.834,14.09318323]
[1772105324071,3.05407651,86.86,86.822,3.72898323]
[1772105324270,3.21186847,86.859,86.822,3.72898323]
[1772105325976,3.21186847,86.857,86.822,3.72898323]
[1772105326570,3.21186847,86.857,86.819,10.3659]
[1772105326571,10.3618,86.855,86.819,10.3659]
[1772105326776,3.21186847,86.857,86.82,3.72898323]
[1772105327379,3.29945089,86.856,86.822,3.72898323]
[1772105328881,3.38108724,86.849,86.8,3.72898323]
[1772105329974,3.38108724,86.843,86.805,10.3677]
[1772105330580,3.38108724,86.843,86.8,3.72898323]
[1772105330974,3.39050925,86.829,86.789,3.72898323]
[1772105331378,3.39050925,86.818,86.771,3.72898323]
[1772105331880,3.05407651,86.81,86.771,3.72898323]
[1772105332082,3.39050925,86.818,86.771,3.72898323]
[1772105332276,3.44605819,86.816,86.771,3.72898323]
[1772105332983,10.3669,86.812,86.771,3.72898323]
[1772105335676,13.79327105,86.812,86.771,3.72898323]
[1772105336379,3.41435474,86.811,86.767,10.3722]
[1772105336679,3.41435474,86.811,86.767,14.02900372]
[1772105336873,3.41435474,86.811,86.768,3.65680372]
[1772105337975,3.41435474,86.811,86.769,10.372]
[1772105338376,3.05407651,86.81,86.769,10.372]
[1772105338570,3.05407651,86.81,86.769,14.02880372]
[1772105338974,3.41435474,86.811,86.77,3.65680372]
[1772105340582,3.41435474,86.811,86.772,3.65680372]
[1772105341178,13.8775122,86.81,86.772,3.65680372]
[1772105341376,16.93158871,86.81,86.772,3.65680372]
[1772105343681,13.8775122,86.81,86.772,3.65680372]
[1772105347378,3.53288136,86.809,86.772,3.65680372]
[1772105349585,3.53288136,86.809,86.774,3.65680372]
[1772105350378,3.53288136,86.809,86.729,34.58]
[1772105350379,3.05407651,86.8,86.762,3.65680372]
[1772105350577,3.55708656,86.799,86.762,3.65680372]
[1772105350984,3.55708656,86.799,86.764,3.65680372]
[1772105351890,3.55708656,86.799,86.765,10.3724]
[1772105352189,3.55708656,86.799,86.765,14.02920372]
[1772105353487,3.55708656,86.799,86.766,3.65680372]
[1772105357690,13.92558656,86.799,86.766,3.65680372]
[1772105357884,175.25425042,86.869,86.743,3.65680372]
[1772105357885,3.59077955,86.819,86.743,3.65680372]
[1772105358086,3.59077955,86.809,86.761,3.65680372]
[1772105358886,10.3676,86.806,86.769,14.02870372]
[1772105359090,10.3676,86.806,86.77,3.65680372]
[1772105359396,3.59077955,86.809,86.77,3.65680372]
[1772105360894,3.59077955,86.809,86.772,10.3716]
[1772105361288,3.59077955,86.809,86.773,3.65680372]
[1772105361895,3.59077955,86.807,86.765,10.3725]
[1772105363093,3.05407651,86.81,86.765,10.3725]
[1772105363094,3.59077955,86.802,86.765,10.3725]
[1772105363291,3.59077955,86.802,86.765,14.02930372]
[1772105363484,3.59077955,86.802,86.767,10.3722]
[1772105363690,3.59077955,86.802,86.768,3.65680372]
[1772105364893,3.59077955,86.802,86.769,10.3719]
[1772105367001,3.05407651,86.8,86.757,3.6183084]
[1772105367294,3.73173068,86.815,86.771,3.6183084]
[1772105368997,3.73173068,86.815,86.777,10.371]
[1772105370400,14.09843068,86.814,86.777,10.371]
[1772105370601,3.73173068,86.813,86.771,3.6183084]
[1772105370998,10.3669,86.812,86.775,3.6183084]
[1772105371503,3.73173068,86.825,86.783,3.6183084]
[1772105372999,3.73173068,86.825,86.789,3.6183084]
[1772105373300,3.73173068,86.847,86.801,3.6183084]
[1772105374900,3.73173068,86.847,86.806,10.3676]
[1772105375905,3.73173068,86.86,86.821,3.6183084]
[1772105377002,3.73173068,86.86,86.822,14.14353768]
[1772105379103,3.65353134,86.872,86.827,3.77793768]
[1772105379511,3.65353134,86.872,86.831,3.77793768]
[1772105380111,3.65353134,86.872,86.832,3.77793768]
[1772105380310,3.65353134,86.869,86.817,3.77793768]
[1772105382003,3.65353134,86.863,86.819,3.77793768]
[1772105382203,3.65353134,86.863,86.82,3.057443]
[1772105383115,3.057443,86.86,86.819,3.77793768]
[1772105383312,3.65353134,86.859,86.819,3.77793768]
[1772105384014,3.65353134,86.857,86.819,3.77793768]
[1772105384214,3.65353134,86.868,86.821,3.77793768]
[1772105384613,3.65353134,86.859,86.821,3.77793768]
[1772105385612,3.65353134,86.856,86.811,10.367]
[1772105385815,3.65353134,86.849,86.797,3.77793768]
[1772105386209,3.65353134,86.845,86.798,3.77793768]
[1772105387210,3.65353134,86.845,86.802,3.77793768]
[1772105388410,10.3631,86.844,86.802,3.77793768]
[1772105388609,3.65353134,86.843,86.802,3.77793768]
[1772105389415,10.3635,86.841,86.804,3.77793768]
[1772105392014,10.3642,86.835,86.804,3.77793768]
[1772105393315,3.65353134,86.841,86.804,3.77793768]
[1772105394414,10.3637,86.839,86.804,3.77793768]
[1772105396221,10.364,86.836,86.804,3.77793768]
[1772105397425,3.63840122,86.838,86.805,10.3676]
[1772105398111,3.63840122,86.838,86.805,13.94552971]
[1772105399117,10.3632,86.844,86.808,3.57792971]
[1772105400421,3.63840122,86.838,86.808,3.57792971]
[1772105400723,3.63840122,86.838,86.801,3.57792971]
[1772105401021,3.63840122,86.836,86.795,3.57792971]
[1772105401620,3.63840122,86.849,86.8,3.057443]
[1772105401826,3.63840122,86.86,86.811,3.57792971]
[1772105402126,13.99950122,86.86,86.819,3.57792971]
[1772105403227,10.3617,86.856,86.821,10.3657]
[1772105403720,3.63840122,86.875,86.824,3.57792971]
[1772105404026,3.63840122,86.875,86.831,3.57792971]
[1772105404416,3.63840122,86.875,86.838,10.3637]
[1772105404826,3.6263667,86.872,86.82,3.057443]
[1772105405125,3.6263667,86.849,86.806,3.57792971]
[1772105406031,3.6263667,86.836,86.791,13.94722971]
[1772105406727,3.6263667,86.836,86.794,10.369]
[1772105406928,3.6263667,86.836,86.794,13.94692971]
[1772105407424,8.98707533,86.868,86.78,3.057443]
[1772105407425,3.62033491,86.829,86.786,10.37]
[1772105407627,3.62033491,86.829,86.787,3.57792971]
[1772105407823,3.62033491,86.841,86.791,3.57792971]
[1772105408126,3.45610893,86.859,86.801,3.57792971]
[1772105408327,3.45610893,86.859,86.811,3.57792971]
[1772105410022,10.3621,86.852,86.811,3.57792971]
[1772105411123,3.45106413,86.851,86.811,3.57792971]
[1772105411320,10.3612,86.86,86.813,3.57792971]
[1772105411517,3.45106413,86.863,86.821,3.57792971]
[1772105411721,3.45106413,86.875,86.821,3.57792971]
[1772105412520,3.45106413,86.875,86.831,3.57792971]
[1772105412924,10.3602,86.868,86.831,3.57792971]
[1772105413533,10.3602,86.868,86.83,3.057443]
[1772105413534,3.45106413,86.875,86.832,3.57792971]
[1772105413828,3.44229529,86.869,86.82,3.57792971]
[1772105414029,3.44229529,86.869,86.82,6.63537271]
[1772105414531,3.38511816,86.869,86.82,3.57792971]
[1772105414930,3.057443,86.86,86.82,3.57792971]
[1772105415126,3.057443,86.86,86.808,3.57792971]
[1772105415325,3.057443,86.87,86.811,3.57792971]
[1772105415522,10.3605,86.866,86.823,3.57792971]
[1772105418230,10.3605,86.866,86.824,13.94322971]
[1772105418628,10.3605,86.866,86.825,3.57792971]
[1772105419032,10.3605,86.866,86.826,10.3651]
[1772105419235,10.3605,86.866,86.827,3.57792971]
[1772105419729,3.49208063,86.867,86.827,3.57792971]
[1772105420029,3.49208063,86.867,86.79,34.58]
[1772105420030,10.3597,86.872,86.831,3.57792971]
[1772105420933,10.3597,86.872,86.835,13.94202971]
[1772105422333,3.55838792,86.867,86.811,3.57792971]
[1772105424037,10.3618,86.855,86.816,10.3664]
[1772105425032,3.57070332,86.854,86.816,10.3664]
[1772105425237,10.3622,86.852,86.816,10.3664]
[1772105426138,3.57070332,86.854,86.822,10.3656]
[1772105426436,10.3614,86.859,86.823,3.72448362]
[1772105427240,13.91861987,86.859,86.823,3.72448362]
[1772105428335,3.55721987,86.859,86.824,10.3653]
[1772105428537,3.55721987,86.859,86.824,14.08978362]
[1772105428741,3.55721987,86.859,86.825,3.72448362]
[1772105429640,3.55721987,86.859,86.826,14.08958362]
[1772105430040,10.3605,86.866,86.828,10.3649]
[1772105430641,10.3605,86.866,86.831,3.72448362]
[1772105432539,10.3597,86.873,86.834,3.72448362]
[1772105432738,10.51855055,86.908,86.736,35.7324778]
[1772105432739,3.52221597,86.891,86.841,3.72448362]
[1772105432940,3.52221597,86.891,86.851,3.72448362]
[1772105434036,3.52221597,86.891,86.854,3.72448362]
[1772105435047,3.52221597,86.891,86.856,10.3616]
[1772105435742,3.52221597,86.891,86.856,14.08608362]
[1772105438246,3.52221597,86.891,86.857,3.72157662]
[1772105440648,3.55977463,86.879,86.831,3.72157662]
[1772105441650,3.55977463,86.875,86.84,10.3634]
[1772105444052,10.3595,86.874,86.84,10.3634]
[1772105445153,10.3595,86.874,86.833,10.3643]
[1772105445554,10.3595,86.874,86.833,14.08587662]
[1772105446052,10.3595,86.874,86.834,3.72157662]
[1772105446248,10.3595,86.874,86.837,10.3639]
[1772105447261,10.3587,86.881,86.841,3.72157662]
[1772105449056,10.3587,86.881,86.845,14.08437662]
[1772105449855,10.3587,86.881,86.846,3.72157662]
[1772105450060,10.3587,86.881,86.847,14.08417662]
[1772105450255,3.53988151,86.887,86.848,3.72157662]
[1772105451861,10.358,86.886,86.849,10.3624]
[1772105452261,3.5531806,86.896,86.851,3.72157662]
[1772105454059,10.3573,86.893,86.857,14.08297662]
[1772105456163,10.3573,86.893,86.858,3.72013791]
[1772105457458,10.3575,86.891,86.858,3.72013791]
[1772105457759,3.54999748,86.889,86.838,3.72013791]
[1772105458560,3.57164027,86.882,86.84,3.05316136]
[1772105458762,3.57164027,86.899,86.851,3.72013791]
[1772105459863,3.57164027,86.896,86.856,10.3616]
[1772105461064,10.357,86.895,86.856,10.3616]
[1772105462166,13.93120867,86.895,86.856,10.3616]
[1772105462364,3.57420867,86.892,86.856,10.3616]
[1772105462665,3.57420867,86.879,86.839,3.72013791]
[1772105464069,3.57420867,86.876,86.842,10.3632]
[1772105465259,10.51855055,86.916,86.811,20.7339]
[1772105465260,3.55523316,86.888,86.849,3.72013791]
[1772105465657,6.60839452,86.9,86.849,3.72013791]
[1772105465858,6.60839452,86.9,86.857,3.72013791]
[1772105466262,3.57907708,86.899,86.841,3.72013791]
[1772105466461,3.05316136,86.9,86.841,3.72013791]
[1772105466462,3.57907708,86.891,86.841,3.72013791]
[1772105466660,3.57907708,86.879,86.841,3.72013791]
[1772105468079,3.57907708,86.877,86.841,3.72013791]
[1772105469078,3.57907708,86.877,86.844,10.363]
[1772105470076,10.3583,86.884,86.844,10.11687713]
[1772105471378,3.57307135,86.889,86.795,3.72013791]
[1772105471582,3.57379756,86.849,86.811,3.72013791]
[1772105471881,3.57379756,86.849,86.753,28.70141685]
[1772105471882,3.05316136,86.84,86.791,3.72013791]
[1772105472082,10.3644,86.833,86.791,3.72013791]
[1772105472378,3.05316136,86.83,86.791,3.72013791]
[1772105473179,3.57379756,86.839,86.791,3.72013791]
[1772105474684,3.59687014,86.855,86.801,3.72013791]
[1772105475691,10.3625,86.849,86.805,14.08773791]
[1772105476288,10.3632,86.843,86.805,3.72013791]
[1772105477783,10.3641,86.836,86.805,3.72013791]
[1772105477980,3.50371125,86.829,86.752,3.72013791]
[1772105478180,3.50371125,86.819,86.761,3.72013791]
[1772105478686,3.05316136,86.81,86.761,3.72013791]
[1772105480087,3.05316136,86.81,86.762,3.72013791]
[1772105480988,3.05316136,86.81,86.764,3.72013791]
[1772105481985,3.05316136,86.81,86.765,10.3725]
[1772105482382,3.05316136,86.81,86.765,14.09263791]
[1772105482686,3.05316136,86.81,86.766,3.72013791]
[1772105483380,3.50371125,86.819,86.775,10.3712]
[1772105483582,3.50371125,86.819,86.78,6.77329927]
[1772105483786,3.50371125,86.819,86.781,3.72013791]
[1772105483986,3.05316136,86.83,86.781,3.72013791]
[1772105484882,3.05316136,86.83,86.786,10.3699]
[1772105486190,3.05316136,86.83,86.781,3.72013791]
[1772105486191,3.52046967,86.832,86.794,10.369]
[1772105486689,3.05316136,86.84,86.797,10.3685]
[1772105486890,3.43680382,86.839,86.797,10.3685]
[1772105487984,13.80040382,86.839,86.797,10.3685]
[1772105488180,3.43680382,86.838,86.795,3.78275778]
[1772105489987,10.364,86.837,86.795,3.78275778]
[1772105490387,13.83473549,86.837,86.795,3.78275778]
[1772105490788,3.47073549,86.836,86.795,3.78275778]
[1772105491389,10.3644,86.833,86.795,3.78275778]
[1772105493384,3.05550681,86.84,86.78,3.05550681]
[1772105493385,3.4770168,86.828,86.782,3.78275778]
[1772105493584,3.4770168,86.819,86.782,3.78275778]
[1772105497097,13.8431168,86.819,86.782,3.78275778]
[1772105499395,10.3664,86.817,86.782,3.78275778]
[1772105500299,3.5086438,86.813,86.772,10.3716]
[1772105501697,3.5086438,86.81,86.773,3.69665832]
[1772105501896,3.5086438,86.809,86.773,3.69665832]
[1772105502294,3.50822353,86.808,86.773,3.69665832]
[1772105502600,3.50822353,86.808,86.765,10.3724]
[1772105503300,3.50822353,86.808,86.772,3.69665832]
[1772105504900,3.50822353,86.808,86.774,10.3714]
[1772105507398,10.3676,86.806,86.772,3.69665832]
[1772105508101,3.50822353,86.808,86.773,10.3715]
[1772105508502,3.48833979,86.837,86.781,3.69665832]
[1772105510103,10.3653,86.826,86.791,14.06595832]
[1772105510497,10.3653,86.826,86.791,3.69665832]
[1772105510898,3.44219541,86.819,86.766,3.69665832]
[1772105511094,3.05550681,86.81,86.766,3.69665832]
[1772105511294,6.49770222,86.81,86.766,3.69665832]
[1772105511497,10.3679,86.803,86.766,3.69665832]
[1772105512704,13.80798856,86.803,86.766,3.69665832]
[1772105516409,3.43825339,86.837,86.768,3.76051709]
[1772105516610,3.43825339,86.819,86.771,3.76051709]
[1772105517011,13.80435339,86.819,86.781,10.3706]
[1772105519408,13.80435339,86.819,86.783,14.13081709]
[1772105519711,10.3661,86.819,86.784,3.76051709]
[1772105521111,10.3653,86.826,86.786,3.76051709]
[1772105522011,14.09545042,86.88,86.74,11.38728251]
[1772105522012,3.4469847,86.849,86.791,3.76051709]
[1772105522312,3.4469847,86.847,86.801,3.76051709]
[1772105522507,10.3637,86.839,86.801,3.76051709]
[1772105523112,10.3629,86.846,86.803,10.3679]
[1772105523613,3.43961038,86.845,86.804,3.76051709]
[1772105524214,3.43961038,86.845,86.808,3.76051709]
[1772105524710,10.3619,86.854,86.811,3.76051709]
[1772105524916,9.04382295,86.872,86.83,6.8160239]
[1772105525111,3.45397217,86.873,86.83,6.8160239]
[1772105525514,3.45397217,86.873,86.831,10.3645]
[1772105525712,3.45397217,86.873,86.832,3.76051709]
[1772105525910,10.3587,86.881,86.841,3.76051709]
[1772105526111,10.3577,86.889,86.851,3.76051709]
[1772105526314,3.45397217,86.899,86.851,3.76051709]
[1772105527814,10.3558,86.905,86.861,3.76051709]
[1772105530111,3.45924249,86.912,86.863,3.76051709]
[1772105530719,10.3552,86.91,86.863,3.76051709]
[1772105530924,3.45924249,86.912,86.863,3.76051709]
[1772105531419,6.53985765,86.91,86.863,3.76051709]
[1772105531720,3.48435084,86.909,86.863,3.76051709]
[1772105531921,10.3562,86.902,86.863,3.76051709]
[1772105535916,3.48435084,86.909,86.863,3.76051709]
[1772105537430,10.3555,86.908,86.863,3.76051709]
[1772105537632,13.83283277,86.908,86.863,3.76051709]
[1772105538127,3.05550681,86.91,86.866,3.76051709]
[1772105538430,10.3546,86.916,86.871,3.76051709]
[1772105540028,10.3546,86.916,86.875,3.76051709]
[1772105540233,3.48083441,86.929,86.881,3.76051709]
[1772105540429,3.48083441,86.941,86.893,3.76051709]
[1772105541435,3.05550681,86.94,86.883,3.76051709]
[1772105541630,3.48083441,86.939,86.883,3.76051709]
[1772105542034,3.48083441,86.939,86.891,3.76051709]
[1772105542234,3.05550681,86.95,86.901,3.76051709]
[1772105542539,3.48083441,86.953,86.901,3.76051709]
[1772105542740,3.48083441,86.953,86.916,3.76051709]
[1772105543133,20.6877,87.006,86.916,3.76051709]
[1772105543134,3.45037383,86.967,86.916,3.76051709]